Cogmind - Beta 14 @@@ ROGUE MODE // 2024.09.20 @ 15:42:46 Player: jimmyl Result: Destroyed by KN-7UR with KN-7UR's Autopenetrator Performance ------------- Evolutions (1) 500 Regions Visited (5) 1000 Robots Destroyed (62) 310 Value Destroyed (1309) 1309 Prototype IDs (4) 80 Alien Tech Used (0) 0 Bonus (-61) -61 TOTAL SCORE: 3138 Bonus ------- High Alert Combat Kills 22 Follower Combat Kills 277 Friendly Fire -360 Cogmind --------- Core Integrity 0/400 Matter 300/300 Energy 94/100 System Corruption 4% Temperature Cool (24) Movement Core (300) Ox5 Location -9/Recycling Parts ------- > --- POWER (1) -------- (None) > --- PROPULSION (2) --- (None) > --- UTILITY (4) ------ Heat Sink Medium Storage Unit Hacking Suite > --- WEAPON (2) ------- Heavy Hammer Heavy Hammer > --- INVENTORY (10) --- Improved Ion Engine Improved Aluminum Leg Compact Wheel Target Analyzer Actuator Array Core Shielding Reflective Plating Heavy Assault Rifle Grenade Launcher Peak State ------------ > --- POWER ------------ Light Angular Momentum Engine > --- PROPULSION ------- Carbon-fiber Leg Makeshift Leg > --- UTILITY ---------- Improved Heat Sink Medium Storage Unit Sensor Array Improved Targeting Computer > --- WEAPON ----------- Field Laser Field Laser > --- INVENTORY -------- Light Ion Engine Wheel Compact Wheel Medium Storage Unit Actuator Array Reflective Plating Field Laser Grenade Launcher Heavy Hammer Heavy Hammer [Rating: 26] Favorites ----------- Power Improved Ion Engine Engine Improved Ion Engine Propulsion Aluminum Leg Leg Aluminum Leg Utility Medium Storage Unit Device Heat Sink Storage Medium Storage Unit Processor Melee Analysis Suite Hackware Hacking Suite Weapon Heavy Hammer Energy Gun EM Pulse Gun Energy Cannon Ion Cannon Launcher Grenade Launcher Impact Weapon Heavy Hammer Build | -11 -10 -10 -9 -9 -9 ------- Run | Yrd Mat Min Mat Sto Rec Slots Evolved 2 | . . . 2 . . Power . | . . . . . . Propulsion . | . . . . . . Utility 2 | . . . 2 . . Weapon . | . . . . . . Parts Attached 37 | . 7 4 15 11 . Power 6 | . 2 . 2 2 . Engine 6 | . 2 . 2 2 . Core . | . . . . . . Reactor . | . . . . . . Propulsion 8 | . 1 1 4 2 . Treads . | . . . . . . Leg 8 | . 1 1 4 2 . Wheel . | . . . . . . Hover . | . . . . . . Flight . | . . . . . . Utility 10 | . 2 1 3 4 . Device 5 | . 1 1 1 2 . Storage 2 | . 1 . 1 . . Processor 2 | . . . 1 1 . Hackware 1 | . . . . 1 . Protection . | . . . . . . Artifact . | . . . . . . Weapon 13 | . 2 2 6 3 . Energy Gun 6 | . 2 . 3 1 . Energy Cannon 3 | . . 1 2 . . Ballistic Gun . | . . . . . . Ballistic Cannon . | . . . . . . Launcher 2 | . . 1 1 . . Special Weapon . | . . . . . . Impact Weapon 2 | . . . . 2 . Slashing Weapon . | . . . . . . Piercing Weapon . | . . . . . . Special Melee Weapon . | . . . . . . Unidentified Prototypes . | . . . . . . Parts Lost 15 | . 1 . 2 8 4 Power 4 | . 1 . . 2 1 Propulsion 4 | . . . . 2 2 Utility 3 | . . . 1 1 1 Weapon 4 | . . . 1 3 . Highest Loss Streak 6 | . 1 . 2 6 4 To Critical Strikes . | . . . . . . Average Slot Usage (%) 98 | . 96 99 94 98 99 Engine 11 | . 13 14 11 10 11 Leg 23 | . 28 28 21 21 21 Device 12 | . 11 14 19 11 11 Storage 12 | . 14 14 11 11 11 Processor 6 | . . . 9 11 10 Hackware 5 | . . . . 10 11 Energy Gun 11 | . 27 17 15 5 . Launcher 1 | . . 9 . . . Impact Weapon 9 | . . . . 16 22 Peak Build Rating 26 | . 8 12 26 25 20 Average Rating 15 | . 6 7 21 20 19 On Entrance 12 | 6 6 7 12 21 20 Naked Turns . | . . . . . . Heaviest Build 29 | 11 20 25 29 24 24 Greatest Support 35 | 20 20 20 35 34 30 Greatest Overweight (x) 1 | . . 1 1 1 1 Average Overweight (x) . | . . . . . . Largest Inventory Capacity 10 | . 10 10 10 10 10 Average Capacity 9 | . 9 10 10 10 10 Most Carried 10 | . 10 10 10 10 9 Average Carried 8 | . 6 9 9 8 9 Final Capacity 10 | 8 10 10 10 10 10 Final Carried 10 | 6 9 10 8 9 9 Class Distribution -------------------- 56% | Mutant 24% | Scavenger-Gladiator 13% | Commander-Gladiator 5% | Scavenger-Mutant Dominant Class ---------------- Mutant | -10/Materials Mutant | -10/Mines Mutant | -9/Materials Scavenger-Gladiator | -9/Storage Commander-Gladiator | -9/Recycling Resources | -11 -10 -10 -9 -9 -9 ----------- Run | Yrd Mat Min Mat Sto Rec Matter Collected 665 | 200 65 46 184 118 52 Remotely . | . . . . . . Salvage Created 1869 | . 396 11 295 1060 107 Parts 110 | . 27 6 29 47 1 Haulers Intercepted 4 | . 1 . . 3 . Recyclers Shooed 1 | . . . . . 1 Parts Field Recycled . | . . . . . . Retrieved Matter . | . . . . . . Parts Self-Destructed . | . . . . . . Prevented . | . . . . . . Kills | -11 -10 -10 -9 -9 -9 ------- Run | Yrd Mat Min Mat Sto Rec Combat Hostiles Destroyed 38 | . 11 3 10 13 1 Melee 2 | . . . . 2 . Guns 24 | . 11 . 5 8 . Cannons 2 | . . . 2 . . AOE 6 | . . 3 3 . . Classes Destroyed 12 | . 6 . 1 4 1 Worker 6 | . 2 . . 4 . Builder 1 | . . . . 1 . Hauler 4 | . 1 . . 3 . Recycler 2 | . . . . 1 1 Mechanic 1 | . . . . 1 . Operator 4 | . 1 . 1 2 . Watcher 6 | . 2 . 2 2 . Swarmer 16 | . 8 3 5 . . Grunt 10 | . 3 . 4 3 . Duelist 1 | . . . . 1 . Protector 1 | . . . . . 1 Sentry 10 | . . . 1 9 . Best Kill Streak 6 | . 3 3 3 6 1 Combat Bots Only 3 | . 3 3 3 2 1 Max Kills in Single Turn 2 | . 2 1 2 2 1 Gunslinging 1 | . 1 . . . . Exploded 2 | . . 1 2 . . Melee 1 | . . . . 1 . Uniques/NPCs Destroyed . | . . . . . . Combat | -11 -10 -10 -9 -9 -9 -------- Run | Yrd Mat Min Mat Sto Rec Hostile Shots Fired 233 | . 48 14 44 89 38 Missed 56 | . 16 3 12 22 3 Damage Taken 2469 | . 424 117 448 957 523 Core 530 | . 111 10 87 149 173 Absorbed by Shields . | . . . . . . Regen/Repaired (Parts) 19 | . . . . 19 . Core Remaining (%) 75 | 100 . 51 . . . Volleys Fired 116 | . 43 3 22 48 . Largest 2 | . 2 1 2 2 . Hottest 126 | . 90 30 126 126 . Shots Fired 218 | . 86 3 42 87 . Gun 203 | . 86 . 30 87 . Cannon 10 | . . . 10 . . Launcher 5 | . . 3 2 . . Special . | . . . . . . Kinetic . | . . . . . . Thermal 165 | . 43 . 35 87 . Explosive 5 | . . 3 2 . . Electromagnetic 48 | . 43 . 5 . . Robot Hit Streak 16 | . 6 1 3 16 . Robot Miss Streak 4 | . 3 1 4 1 . Penetration Max . | . . . . . . Secondary Targets 4 | . 4 . . . . Max Gunslinging Chain 1 | . 1 . . . . Shots Hit Robots 160 | . 48 1 22 82 7 Core Hits 64 | . 21 2 14 26 1 Critical Kills . | . . . . . . Critical Parts Destroyed 5 | . . . . 3 2 Critical Strikes 13 | . 4 . 2 5 2 Burn 5 | . 2 . 1 2 . Corrupt 3 | . 2 . 1 . . Smash 5 | . . . . 3 2 Melee Attacks 35 | . . . . 25 10 Impact 35 | . . . . 25 10 Slashing . | . . . . . . Piercing . | . . . . . . Sneak Attacks 8 | . . . . 4 4 Combat Hostiles 1 | . . . . . 1 Follow-up Attacks 2 | . . . . 1 1 Damage Inflicted 3914 | . 888 174 594 1829 429 Guns 2067 | . 616 . 297 1154 . Cannons 123 | . . . 123 . . Explosions 613 | . 272 167 174 . . Melee 1104 | . . . . 675 429 Ramming 7 | . . 7 . . . Kinetic . | . . . . . . Thermal 2044 | . 549 . 341 1154 . Explosive 341 | . . 167 174 . . Electromagnetic 418 | . 339 . 79 . . Impact 1104 | . . . . 675 429 Slashing . | . . . . . . Piercing . | . . . . . . Highest Corruption 4 | . . . . 3 4 Average Corruption 3 | . . . . 2 3 Corruption Purged . | . . . . . . Corruption Blocked . | . . . . . . Effects 39 | . . . . 23 16 Message Errors 14 | . . . . 8 6 Matter Fused 11 | . . . . 5 6 Heat Flow Errors 5 | . . . . 4 1 Energy Discharges 6 | . . . . 4 2 Data Loss (minor) 1 | . . . . 1 . Data Loss (major) 1 | . . . . 1 . Alerts 1 | . . . . . 1 Overload Shots . | . . . . . . Overflow Damage 619 | . 123 13 3 265 215 Projectiles . | . . . . . . Explosions 139 | . 123 13 3 . . Melee 480 | . . . . 265 215 Knockbacks 6 | . . 1 . 1 4 Impact 6 | . . 1 . 1 4 Kinetic . | . . . . . . Secondary . | . . . . . . Self-Inflicted Damage 163 | . 163 . . . . Shots 2 | . 2 . . . . Rammed . | . . . . . . Targets Rammed 1 | . . 1 . . . Kicked 1 | . . 1 . . . Crushed . | . . . . . . Highest Temperature 211 | . 192 . 105 211 107 Average Temperature 56 | . 59 . 35 62 38 Received Heat Transfer 739 | . 12 . 63 357 307 Siege Activations . | . . . . . . Robots Corrupted 8 | . . . . 7 1 Combat Hostiles 3 | . . . . 2 1 Parts Fried 13 | . 2 . . 11 . Impact Corruptions 21 | . . . . 14 7 Robots Melted 1 | . . . . 1 . Combat Hostiles 1 | . . . . 1 . Parts Melted 11 | . 3 . 3 5 . Heat Transferred 4653 | . 1212 . 777 2664 . Parts Sabotaged . | . . . . . . Parts Stolen . | . . . . . . Parts Stripped . | . . . . . . Power Chain Reactions 1 | . 1 . . . . Alert | -11 -10 -10 -9 -9 -9 ------- Run | Yrd Mat Min Mat Sto Rec Peak Influence 473 | . 206 189 358 473 121 Initial 115 | . . 51 73 115 93 Average 190 | . 130 51 244 301 74 Maximum Alert Level 2 | . 1 . 1 2 . Low Security (%) 52 | . 82 100 32 8 100 Level 1 43 | . 17 . 67 81 . Level 2 3 | . . . . 10 . Level 3 . | . . . . . . Level 4 . | . . . . . . Level 5 . | . . . . . . High Security . | . . . . . . Max Security . | . . . . . . Squads Dispatched 4 | . 1 . 1 2 . Investigation . | . . . . . . Extermination . | . . . . . . Reinforcement 4 | . 1 . 1 2 . Assault . | . . . . . . Garrison . | . . . . . . Intercept . | . . . . . . Searches Triggered . | . . . . . . Construction Impeded . | . . . . . . Haulers Reinforced . | . . . . . . Active Scanning Responses . | . . . . . . Cargo Convoy Interrupts . | . . . . . . Stealth | -11 -10 -10 -9 -9 -9 --------- Run | Yrd Mat Min Mat Sto Rec Distress Signals 4 | . . . 1 3 . Communications Jammed . | . . . . . . Distress Signals . | . . . . . . Times Spotted 67 | . 20 6 16 21 4 Peak Tracking Total 4 | . 3 3 4 4 2 Tactical Retreats 5 | . 1 . 1 3 . Traps | -11 -10 -10 -9 -9 -9 ------- Run | Yrd Mat Min Mat Sto Rec Traps Triggered 3 | . . . 1 2 . Indirectly . | . . . . . . Trap Hack Attempts . | . . . . . . Triggered . | . . . . . . Disarmed . | . . . . . . Reprogrammed . | . . . . . . Reused . | . . . . . . Traps Extracted . | . . . . . . Installed . | . . . . . . Triggered . | . . . . . . Machines | -11 -10 -10 -9 -9 -9 ---------- Run | Yrd Mat Min Mat Sto Rec Machines Disabled 8 | . 4 . 1 3 . Max in Single Turn 2 | . 2 . . 1 . Garrison Access 1 | . . . . 1 . Machines Repaired . | . . . . . . Machines Dismantled . | . . . . . . Machines Sabotaged . | . . . . . . Overloaded Fab Kills . | . . . . . . Hacking | -11 -10 -10 -9 -9 -9 --------- Run | Yrd Mat Min Mat Sto Rec Machines Accessed 24 | . 5 1 2 10 6 Terminals 21 | . 5 . 2 8 6 Fabricators . | . . . . . . Repair Stations 1 | . . . . 1 . Recycling Units . | . . . . . . Scanalyzers . | . . . . . . Garrison Access 1 | . . . . 1 . Total Hacks 47 | . 10 1 5 17 14 Successful 29 | . 4 1 3 13 8 Failed 18 | . 6 . 2 4 6 Catastrophic 1 | . . . . 1 . Database Lockouts . | . . . . . . Manual 24 | . 5 . 1 9 9 Terminals 42 | . 10 . 5 13 14 Fabricators . | . . . . . . Repair Stations 2 | . . . . 2 . Recycling Units . | . . . . . . Scanalyzers . | . . . . . . Garrison Access 2 | . . . . 2 . Terminal Hacks 14 | . 4 1 3 4 2 Robot Analysis 2 | . 1 . . 1 . Prototype ID Bank 2 | . 1 . . 1 . Open Door 2 | . . 1 . 1 . Branch Access Points 1 | . . . 1 . . Emergency Access Points 1 | . . . 1 . . Terminal Index 1 | . . . . . 1 Locate Traps 2 | . 1 . . 1 . Hauler Manifests 1 | . . . 1 . . Zone Layout 2 | . 1 . . . 1 Fabricator Hacks . | . . . . . . Repair Station Hacks 2 | . . . . 2 . Scan Component 1 | . . . . 1 . Repair 1 | . . . . 1 . Recycling Unit Hacks . | . . . . . . Scanalyzer . | . . . . . . Garrison Access Hacks 1 | . . . . 1 . Seal Access 1 | . . . . 1 . Unauthorized Hacks 11 | . . . . 5 6 Terminals 11 | . . . . 5 6 Skim 11 | . . . . 5 6 Fabricators . | . . . . . . Repair Stations . | . . . . . . Recycling Units . | . . . . . . Scanalyzers . | . . . . . . Garrison Access . | . . . . . . Data Cores Recovered 1 | . . . . 1 . Used . | . . . . . . Hacking Detections 11 | . 3 . . 5 3 Full Trace Events 1 | . . . . . 1 Feedback Events 1 | . . . . . 1 Corruption 1 | . . . . . 1 Feedback Blocked . | . . . . . . Robot Schematics Acquired . | . . . . . . Robots Built . | . . . . . . Authchips . | . . . . . . Time . | . . . . . . Total Robot Build Rating . | . . . . . . Part Schematics Acquired . | . . . . . . Parts Built . | . . . . . . Authchips . | . . . . . . Time . | . . . . . . Total Part Build Rating . | . . . . . . Parts Repaired 1 | . . . . 1 . Time 44 | . . . . 44 . Parts Recycled . | . . . . . . Recycled Matter . | . . . . . . Retrieved Matter . | . . . . . . Retrieved Components . | . . . . . . Parts Scanalyzed . | . . . . . . Part Schematics Acquired . | . . . . . . Parts Damaged . | . . . . . . Bothacking | -11 -10 -10 -9 -9 -9 ------------ Run | Yrd Mat Min Mat Sto Rec Used RIF Installer . | . . . . . . Robots Hacked . | . . . . . . Non-combat . | . . . . . . Combat . | . . . . . . Robot Hacks Applied . | . . . . . . Relay Couplers Released . | . . . . . . Fabnet Peak Effective % . | . . . . . . Robots Rewired 3 | . . . . . 3 Allies Hacked . | . . . . . . Hacks Repelled . | . . . . . . Allies | -11 -10 -10 -9 -9 -9 -------- Run | Yrd Mat Min Mat Sto Rec Total Allies 15 | . . 2 . 10 3 Largest Group 10 | . . 2 2 10 7 Highest-Rated Group 88 | . . 45 45 88 71 Highest-Rated Ally 31 | . . 31 31 16 21 Total Orders . | . . . . . . Ally Attacks 85 | . . 5 16 41 23 Total Damage 901 | . . 64 253 317 267 Kills 14 | . . 3 3 6 2 Allies Corrupted . | . . . . . . Allies Melted 1 | . . . . . 1 Intel | -11 -10 -10 -9 -9 -9 ------- Run | Yrd Mat Min Mat Sto Rec Robot Analysis Total 2 | . 1 . . 1 . Derelict Logs Recovered 1 | . . 1 . . . Drone Launches . | . . . . . . Drone Recoveries . | . . . . . . Exploration | -11 -10 -10 -9 -9 -9 ------------- Run | Yrd Mat Min Mat Sto Rec Turns Passed 4704 | . 904 742 585 1826 647 Spaces Moved 2606 | 1 609 397 317 860 422 Core . | . . . . . . Treads . | . . . . . . Legs 2606 | 1 609 397 317 860 422 Wheels . | . . . . . . Hover . | . . . . . . Flight . | . . . . . . Fastest Speed 120 | 120 120 120 130 125 125 Average Speed 132 | 120 120 161 142 128 125 Slowest Speed 200 | 120 120 190 200 200 190 Overloaded Moves . | . . . . . . Propulsion Burnouts . | . . . . . . Robots Hopped . | . . . . . . Cave-ins Triggered . | . . . . . . Exploration Rate (%) 60 | 2 79 68 33 94 85 Regions Visited 5 Branch Regions 3 Pre-discovered Areas 7 | . . . . 5 2 Known Exits Taken 1 | . . . 1 . . Unknown Exits Taken 4 | 1 1 1 . 1 . Scrap Searched 1 | . . 1 . . . Spaces Dug . | . . . . . . Terrain Destroyed 64 | . 32 24 8 . . Melee . | . . . . . . Projectile . | . . . . . . AOE 64 | . 32 24 8 . . Terrain Rammed . | . . . . . . Walls Destroyed . | . . . . . . Machines Disabled . | . . . . . . Actions | -11 -10 -10 -9 -9 -9 --------- Run | Yrd Mat Min Mat Sto Rec Total 3587 | . 697 496 408 1458 528 Wait 717 | . 26 81 34 509 67 Move 2601 | . 608 396 316 859 422 Hop . | . . . . . . Pick Up 28 | . 7 5 7 9 . Fast Attach 17 | . 3 2 8 4 . Attach 13 | . 2 1 3 7 . Detach . | . . . . . . Swap 7 | . 2 1 4 . . Drop 28 | . 6 6 14 2 . Fire 116 | . 43 3 22 48 . Melee 28 | . . . . 20 8 Ram . | . . . . . . Kick 1 | . . 1 . . . Crush . | . . . . . . Escape Stasis . | . . . . . . Rewire 31 | . . . . . 31 Trap . | . . . . . . Miscellaneous . | . . . . . . Route ------- -11/Scrapyard -10/Materials (discovered 3 exits: *Mat x2 / *Min) -10/Mines (discovered 2 exits: *Mat / [*Exi]) -9/Materials (discovered 4 exits: [*Mat] / Min / *Sto x2) -9/Storage (discovered 2 exits: [*Mat] / *Rec) -9/Recycling (discovered 1 exit: [*Fac]) History --------- Turn | Location | Event 1 | -11/Scrapyard | Discovered new exit (range 0) 1 | -11/Scrapyard | Entered Materials 209 | -10/Materials | Discovered new exit (range 16) 315 | -10/Materials | Build established: Mutant 316 | -10/Materials | Discovered new exit (range 12) 690 | -10/Materials | Discovered new exit (range 15) 905 | -10/Materials | Entered Mines 1094 | -10/Mines | Assembled infested the area 1362 | -10/Mines | Discovered new exit (range 5) 1505 | -10/Mines | Learned Materials machine intel 1560 | -10/Mines | Discovered new exit (range 6) 1595 | -10/Mines | Met a Derelict who couldn't figure out how to use a Trap Extractor 1647 | -10/Mines | Entered Materials 1647 | -9/Materials | Accompanied by 2 allies 1647 | -9/Materials | Evolved 2 slots: Utility x2 1648 | -9/Materials | Loaded intel: 58 machine locations 1652 | -9/Materials | Led the pair of lost Derelicts to an unsafe place 1668 | -9/Materials | Identified exit to Mines 1668 | -9/Materials | Identified exit to Storage 1965 | -9/Materials | Discovered new exit (range 16) 2232 | -9/Materials | Entered Storage 2692 | -9/Storage | Lost 6 parts (2p2n2w) 2754 | -9/Storage | Repaired Corrupted Hvy. Assault Rifle 2820 | -9/Storage | Learned location of Armory (-4) 2931 | -9/Storage | Core integrity fell below 50% 2977 | -9/Storage | Discovered new exit (range 9) 3080 | -9/Storage | Assisted by bots powering up and referring to "LRC-V3" 3188 | -9/Storage | Met 01-MTF 3377 | -9/Storage | Build established: Commander-Gladiator 3681 | -9/Storage | Build established: Scavenger-Gladiator 3698 | -9/Storage | Discovered new exit (range 11) 3870 | -9/Storage | Learned Materials stockpile data 3913 | -9/Storage | Learned Materials emergency access door positions 3965 | -9/Storage | Learned location of Zion (-7) 4058 | -9/Storage | Entered Recycling 4058 | -9/Recycling | Accompanied by 5 allies (01-MTF) 4374 | -9/Recycling | Discovered new exit (range 8) 4414 | -9/Recycling | Learned location of Storage (-9) 4460 | -9/Recycling | Build established: Commander-Gladiator 4605 | -9/Recycling | Learned Storage emergency access door positions 4647 | -9/Recycling | Identified exit to Scraptown 4658 | -9/Recycling | Scanned before Scraplab entrance 4678 | -9/Recycling | Learned location of 3 exits from Materials 4691 | -9/Recycling | Angered Scraplab inhabitants 4698 | -9/Recycling | Core integrity fell below 20% 4705 | -9/Recycling | Destroyed by KN-7UR with KN-7UR's Autopenetrator Last Messages --------------- 04699_ Thermabolt penetrates Wall. 04700_ Acquired 21 matter. 04700_ Slug penetrates KN-7UR. 04701_ Penetrated by Thermabolt. 04701_ Thermabolt penetrates Wall. 04701_ Penetrated by Thermabolt. 04701_ Thermabolt penetrates Wall. 04701_ Penetrated by Thermabolt. 04701_ Thermabolt penetrates Wall. 04701_ Penetrated by Thermabolt. 04703_ Imp. Ion Engine destroyed. 04703_ Thermabolt penetrates Wall. 04703_ Penetrated by Thermabolt. 04703_ Imp. Aluminum Leg destroyed. 04703_ Penetrated by Thermabolt. 04703_ Slug penetrates KN-7UR. 04704_ Hvy. Hammer follow-up attack on KN-7UR. 04705_ Penetrated by Thermabolt. 04705_ Thermabolt penetrates Wall. 04705_ Penetrated by Thermabolt. Map ----- +----------------------------------------------------+ | " # "" # """"" #????????????? | | " # Y" # #????????????? | | " # "" # #????????????? | | # # #????????????? | | + + #????????????? | | ##### #########????????????? | | #???# #????????????????????? | | #+###???# #?####???????????????? | | #???????# #|] #???????????????? | | # ####### #! ] #???????????????? | | # + ! #???????????????? | | # # ! #???????????????? | | # # [ #???????????????? | | # #? /[#???????????????? | | # #? #???????????????? | | # #?? #???????????????? | | # #?? #???????????????? | | # #??? #???????????????? | | # #???!#???????????????? | | #????#???????????????? | | #????????????????????? | | ###+#?######?????????? | | #?# #?????????? | | ########### #?# #???##????? | | ?# !% [ # ### gh####!##???? | | ?#!= ; r%! =%h@!%=[#???? | | ?+ ! ########## [#####!#???? | | ?# ! ???????????# #?????????? | | # ?????????????# #?????????? | | ?# ???????????????######?????????? | | ?#????????????????????????????????? | | ??????????????????????????????????? | | ??????????????????????????????????? | | ??????????????????????????????????? | | ??????????????????????????????????? | | ??????????????????????????????????? | | ??????????????????????????????????? | | ??????????????????????????????????? | | ??????????????????????????????????? | | ????????????????????????????????>?? | | ??????????????????????????????????? | | ??????????????????????????????????? | | ??????????????????????????????????? | | ??????????????????????????????????? | | ??????????????????????????????????? | | ??????????????????????????????????? | | ??????????????????????????????????? | | ??????????????????????????????????? | | ??????????????????????????????????? | | ??????????????????????????????????? | +----------------------------------------------------+ Best States ------------- Heat Dissipation 42 Energy Generation 18 Energy Capacity 265 Matter Stores 300 Matter Capacity 300 Sight Range 16 Robot Scan Range 14 Terrain Scan Density 10 Evasion (%) 55 Targeting Accuracy 6 Melee Accuracy 5 Offensive Hacking 10 Item Schematics ----------------- None Robot Schematics ------------------ None Fabricated ------------ Nothing Alien Tech Used ----------------- None Achievements -------------- None Challenges ------------ None Game ------ Seed DrainedLinearMachine Manual? 0 Play Time 00:28:22 Cumulative 135.2 hours Start 2024.09.20 @ 15:17:19 End 2024.09.20 @ 15:42:46 Sessions 1 Manual Loads 0 Difficulty Rogue Special Mode None Game No. 219 Rogue 218 Adventurer 1 Explorer 0 Win Type - Total 2 Types 2/0/0/0/0/0/0/0/0 Lore% 70 Gallery% 68 Achievement% 50 Wizard Run 0 Options --------- Layout 1 ASCII 0 Keyboard 0 Movement Mouse Keybinds 0 Fullscreen 2 Font 20/SmallcapsGlow Map View 54x42 Zoom Use 0% Tactical HUD 1 Map Filters NONE Filters NONE Steam 0 RUN: 776f8a26-e040-4c43-bb39-1b6fe2135dc3